Cogmind - Beta 16 @@@ ROGUE MODE // 2025.11.30 @ 18:29:55 Player: ZOT Result: Destroyed by C-17 Slicer with Blade Saw Performance ------------- Evolutions (2) 1000 Regions Visited (4) 800 Robots Destroyed (14) 70 Value Destroyed (279) 279 Prototype IDs (2) 40 Alien Tech Used (0) 0 Bonus (0) 0 TOTAL SCORE: 2189 Bonus ------- None Cogmind --------- Core Integrity 0/550 Matter 260/300 Energy 118/265 System Corruption 0% Temperature Cool (0) Movement Core (200) Ox3 Location -8/Materials Parts ------- > --- POWER (2) -------- Improved Ion Engine > --- PROPULSION (3) --- (None) > --- UTILITY (4) ------ (None) > --- WEAPON (2) ------- Powered Hammer > --- INVENTORY (5) ---- Heavy Ion Engine Improved Datajack Peak State ------------ > --- POWER ------------ Improved Ion Engine > --- PROPULSION ------- Aluminum Leg Improved Aluminum Leg Hover Unit > --- UTILITY ---------- Large Battery Advanced Visual Processing Unit Sensor Array > --- WEAPON ----------- Autogun Autogun > --- INVENTORY -------- Improved Ion Engine Heavy Ion Engine Heat Sink Improved Datajack Mining Laser [Rating: 16] Favorites ----------- Power Ion Engine Engine Ion Engine Propulsion Aluminum Leg Leg Aluminum Leg Hover Unit Hover Unit Utility Large Battery Device Seismic Detector Storage Large Battery Processor Advanced Visual Processing Unit Weapon Autogun Ballistic Gun Autogun Special Weapon Mining Laser Impact Weapon Powered Hammer Special Melee Weapon Improved Datajack Build | -11 -10 -9 -9 -8 ------- Run | Yrd Mat Mat Sto Mat Slots Evolved 4 | . . 2 . 2 Power 1 | . . . . 1 Propulsion 1 | . . 1 . . Utility 2 | . . 1 . 1 Weapon . | . . . . . Parts Attached 21 | 7 3 5 5 1 Power 4 | 2 . . 2 . Engine 4 | 2 . . 2 . Core . | . . . . . Reactor . | . . . . . Propulsion 6 | 2 2 1 1 . Treads . | . . . . . Leg 3 | 2 . . 1 . Wheel . | . . . . . Hover 3 | . 2 1 . . Flight . | . . . . . Utility 4 | 1 1 1 1 . Device 2 | 1 . . 1 . Storage 1 | . 1 . . . Processor 1 | . . 1 . . Hackware . | . . . . . Protection . | . . . . . Artifact . | . . . . . Weapon 7 | 2 . 3 1 1 Energy Gun . | . . . . . Energy Cannon . | . . . . . Ballistic Gun 4 | 2 . 2 . . Ballistic Cannon . | . . . . . Launcher . | . . . . . Special Weapon 1 | . . . 1 . Impact Weapon 1 | . . . . 1 Slashing Weapon . | . . . . . Piercing Weapon . | . . . . . Special Melee Weapon 1 | . . 1 . . Unidentified Prototypes . | . . . . . Parts Lost 11 | . . 2 8 1 Power 1 | . . . 1 . Propulsion 5 | . . 2 3 . Utility 2 | . . . 1 1 Weapon 3 | . . . 3 . Highest Loss Streak 8 | . . 1 8 1 To Critical Strikes . | . . . . . Average Backups 3 | 1 3 4 4 2 Power 1 | . 1 . 1 1 Propulsion . | . 1 2 . . Utility . | . . . . . Weapon . | . 1 1 . . Tool/Special . | . . . . . Unused Backups 3 | . 1 . 1 1 Power 1 | . . . . 1 Propulsion . | . . . . . Utility 1 | . . . 1 . Weapon 1 | . 1 . . . Tool/Special . | . . . . . Average Slot Usage (%) 87 | . 93 94 96 18 Engine 9 | . 14 11 10 . Leg 13 | . 8 . 22 . Hover 14 | . 20 29 9 . Device 9 | . 14 11 10 . Storage 10 | . 8 11 11 8 Processor 9 | . . 9 11 8 Ballistic Gun 18 | . 28 19 20 . Peak Build Rating 16 | 6 7 14 16 6 Average Rating 10 | 5 6 11 13 3 On Entrance 5 | . 6 7 11 4 Avg Prop Armor Cover (%) 5 | . . . 5 . Naked Turns 6 | . . . . 6 Heaviest Build 17 | 9 12 15 17 3 Greatest Support 33 | 20 20 18 33 3 Greatest Overweight (x) 2 | 2 . 2 . . Average Overweight (x) . | . . . . . Largest Inventory Capacity 5 | 5 5 5 5 5 Average Capacity 5 | 5 5 5 5 5 Most Carried 5 | 3 5 5 5 4 Average Carried 3 | 1 4 4 4 2 Final Capacity 5 | 5 5 5 5 5 Final Carried 5 | 2 5 5 3 2 Class Distribution -------------------- 100% | Mutant Dominant Class ---------------- Mutant | -10/Materials Mutant | -9/Materials Mutant | -9/Storage Mutant | -8/Materials Resources | -11 -10 -9 -9 -8 ----------- Run | Yrd Mat Mat Sto Mat Matter Collected 669 | 343 . 108 218 . Remotely . | . . . . . Salvage Created 472 | 172 . 107 193 . Parts 31 | 9 . 8 14 . Haulers Intercepted . | . . . . . Recyclers Shooed . | . . . . . Parts Field Recycled . | . . . . . Retrieved Matter . | . . . . . Parts Self-Destructed . | . . . . . Prevented . | . . . . . Parts Restored . | . . . . . Kills | -11 -10 -9 -9 -8 ------- Run | Yrd Mat Mat Sto Mat Combat Hostiles Destroyed 7 | . . 2 5 . Guns 7 | . . 2 5 . Classes Destroyed 6 | 2 . 2 2 . Builder 1 | . . 1 . . Tunneler 5 | 5 . . . . Recycler 1 | 1 . . . . Swarmer 2 | . . . 2 . Grunt 2 | . . 2 . . Sentry 3 | . . . 3 . Best Kill Streak 4 | 4 . 2 2 . Combat Bots Only 2 | . . 1 2 . Max Kills in Single Turn 2 | 1 . 2 1 . Gunslinging . | . . . . . Exploded . | . . . . . Melee . | . . . . . Uniques/NPCs Destroyed . | . . . . . Combat | -11 -10 -9 -9 -8 -------- Run | Yrd Mat Mat Sto Mat Hostile Shots Fired 173 | . . 20 67 86 Missed 58 | . . 1 21 36 Hits 115 | . . 19 46 50 Melee 12 | . . . 7 5 Projectile 103 | . . 19 39 45 Critical Strikes 3 | . . . 2 1 Damage Taken 1597 | . . 240 750 607 Core 808 | . . 35 208 565 Absorbed by Shields . | . . . . . Core Remaining (%) 79 | 100 100 . 39 . Volleys Fired 60 | 23 . 7 30 . Largest 2 | 2 . 2 2 . Hottest 100 | 40 . 46 100 . Shots Fired 114 | 46 . 14 54 . Gun 109 | 46 . 14 49 . Cannon . | . . . . . Launcher . | . . . . . Special 5 | . . . 5 . Kinetic 109 | 46 . 14 49 . Thermal 5 | . . . 5 . Explosive . | . . . . . Electromagnetic . | . . . . . Robot Hit Streak 14 | 9 . 6 14 . Robot Miss Streak 4 | 4 . 1 3 . Penetration Max . | . . . . . Secondary Targets . | . . . . . Shots Hit Robots 71 | 31 . 13 26 1 Core Hits 24 | 9 . 4 9 2 Critical Kills . | . . . . . Critical Parts Destroyed . | . . . . . Critical Strikes . | . . . . . Melee Attacks 5 | . . 3 . 2 Impact 2 | . . . . 2 Slashing . | . . . . . Piercing . | . . . . . Sneak Attacks 1 | . . 1 . . Combat Hostiles . | . . . . . Follow-up Attacks . | . . . . . Damage Inflicted 1024 | 319 . 175 450 80 Guns 872 | 319 . 175 378 . Cannons . | . . . . . Explosions . | . . . . . Melee 60 | . . . . 60 Ramming 20 | . . . . 20 Kinetic 872 | 319 . 175 378 . Thermal 72 | . . . 72 . Explosive . | . . . . . Electromagnetic . | . . . . . Impact 60 | . . . . 60 Slashing . | . . . . . Piercing . | . . . . . Highest Corruption . | . . . . . Average Corruption . | . . . . . Corruption Purged . | . . . . . Corruption Blocked . | . . . . . Overload Shots . | . . . . . Overflow Damage 29 | . . . 9 20 Projectiles 9 | . . . 9 . Explosions . | . . . . . Melee 20 | . . . . 20 Knockbacks . | . . . . . Impact . | . . . . . Kinetic . | . . . . . Secondary . | . . . . . Self-Inflicted Damage 9 | . . . . 9 Shots . | . . . . . Rammed 8 | . . . . 8 Targets Rammed 8 | . . . . 8 Kicked . | . . . . . Crushed . | . . . . . Highest Temperature 105 | . . 24 105 . Average Temperature 32 | . . 12 39 . Received Heat Transfer 357 | . . 102 219 36 Siege Activations . | . . . . . Martial Activations . | . . . . . Shielding Activations . | . . . . . Robots Disrupted . | . . . . . Combat Hostiles . | . . . . . Robots Corrupted . | . . . . . Combat Hostiles . | . . . . . Parts Fried . | . . . . . Impact Corruptions 1 | . . . . 1 Robots Melted . | . . . . . Combat Hostiles . | . . . . . Parts Melted . | . . . . . Heat Transferred 150 | . . . 150 . Parts Sabotaged . | . . . . . Parts Stolen . | . . . . . Parts Stripped . | . . . . . Power Chain Reactions . | . . . . . Alert | -11 -10 -9 -9 -8 ------- Run | Yrd Mat Mat Sto Mat Maximum Alert Level . | . . . . . Low Security (%) 100 | 100 100 100 100 100 Level 1 . | . . . . . Level 2 . | . . . . . Level 3 . | . . . . . Level 4 . | . . . . . Level 5 . | . . . . . High Security . | . . . . . Max Security . | . . . . . Peak Influence 81 | 10 6 66 81 30 Initial 3 | . 3 . 3 . Average 16 | 1 1 21 22 2 Influence Increases 417 | 30 6 169 167 45 Destroy 0b10 Robot/C 140 | . . 40 100 . Destroy 0b10 Robot/NC 35 | 30 . 5 . . Destroy Leader 50 | . . 20 30 . Successful Hack 40 | . 6 29 5 . Disable Machine 15 | . . . 15 . Destroy Structure 2 | . . . 2 . Partial Spotted 45 | . . 30 . 15 Lose Combat Pursuer 90 | . . 45 15 30 Influence Decreases 387 | 25 11 159 177 15 Entered New Map 9 | . 2 . 7 . Time Decay 296 | 25 9 93 154 15 Lost Part 36 | . . 20 16 . Purge Threat 46 | . . 46 . . Squads Dispatched 5 | . . 2 . 3 Investigation 2 | . . 1 . 1 Extermination . | . . . . . Reinforcement 3 | . . 1 . 2 Assault . | . . . . . Garrison . | . . . . . Intercept . | . . . . . Searches Triggered . | . . . . . Construction Impeded . | . . . . . Haulers Reinforced . | . . . . . Active Scanning Responses . | . . . . . Cargo Convoy Interrupts . | . . . . . Stealth | -11 -10 -9 -9 -8 --------- Run | Yrd Mat Mat Sto Mat Distress Signals 3 | . . . 1 2 Communications Jammed . | . . . . . Distress Signals . | . . . . . Times Spotted 44 | . 2 9 12 21 Peak Tracking Total 22 | . 2 5 8 22 Tactical Retreats 4 | . . 2 1 1 Traps | -11 -10 -9 -9 -8 ------- Run | Yrd Mat Mat Sto Mat Traps Triggered 1 | . . . 1 . Indirectly . | . . . . . Trap Hack Attempts . | . . . . . Triggered . | . . . . . Disarmed . | . . . . . Reprogrammed . | . . . . . Reused . | . . . . . Traps Extracted . | . . . . . Installed . | . . . . . Triggered . | . . . . . Machines | -11 -10 -9 -9 -8 ---------- Run | Yrd Mat Mat Sto Mat Machines Disabled 1 | . . . 1 . Max in Single Turn 1 | . . . 1 . Machines Repaired . | . . . . . Machines Dismantled . | . . . . . Machines Sabotaged . | . . . . . Overloaded Fab Kills . | . . . . . Hacking | -11 -10 -9 -9 -8 --------- Run | Yrd Mat Mat Sto Mat Machines Accessed 18 | . 3 8 6 1 Terminals 14 | . 3 6 4 1 Fabricators . | . . . . . Repair Stations 2 | . . 1 1 . Recycling Units . | . . . . . Scanalyzers 1 | . . 1 . . Garrison Access 1 | . . . 1 . Total Hacks 45 | . 7 20 15 3 Successful 15 | . 2 9 3 1 Failed 30 | . 5 11 12 2 Catastrophic 3 | . 1 1 1 . Database Lockouts . | . . . . . Manual 25 | . 6 14 3 2 Terminals 39 | . 7 18 11 3 Fabricators . | . . . . . Repair Stations 3 | . . 1 2 . Recycling Units . | . . . . . Scanalyzers 1 | . . 1 . . Garrison Access 2 | . . . 2 . Terminal Hacks 10 | . 1 5 3 1 Record 4 | . 1 1 1 1 Prototype ID Bank 1 | . . . 1 . Alert Level 1 | . . . 1 . Unreport Threat 1 | . . 1 . . Locate Traps 1 | . . 1 . . Investigation Status 1 | . . 1 . . Zone Layout 1 | . . 1 . . Fabricator Hacks . | . . . . . Repair Station Hacks 1 | . . 1 . . Scan Component 1 | . . 1 . . Recycling Unit Hacks . | . . . . . Scanalyzer . | . . . . . Garrison Access Hacks . | . . . . . Unauthorized Hacks 4 | . 1 3 . . Terminals 4 | . 1 3 . . Track 2 | . . 2 . . Assimilate 2 | . 1 1 . . Fabricators . | . . . . . Repair Stations . | . . . . . Recycling Units . | . . . . . Scanalyzers . | . . . . . Garrison Access . | . . . . . Data Cores Recovered . | . . . . . Used . | . . . . . Hacking Detections 17 | . 3 7 6 1 Full Trace Events 3 | . . 1 1 1 Feedback Events . | . . . . . Feedback Blocked . | . . . . . Robot Schematics Acquired . | . . . . . Robots Built . | . . . . . Authchips . | . . . . . Time . | . . . . . Total Robot Build Rating . | . . . . . Part Schematics Acquired . | . . . . . Parts Built . | . . . . . Authchips . | . . . . . Time . | . . . . . Total Part Build Rating . | . . . . . Part Studies Acquired . | . . . . . Parts Repaired . | . . . . . Time . | . . . . . Parts Recycled . | . . . . . Recycled Matter . | . . . . . Retrieved Matter . | . . . . . Retrieved Components . | . . . . . Parts Scanalyzed . | . . . . . Part Schematics Acquired . | . . . . . Parts Damaged . | . . . . . Bothacking | -11 -10 -9 -9 -8 ------------ Run | Yrd Mat Mat Sto Mat Used RIF Installer . | . . . . . Robots Hacked 1 | . . 1 . . Non-combat 1 | . . 1 . . Combat . | . . . . . Robot Hacks Applied 1 | . . 1 . . check_alert 1 | . . 1 . . Relay Couplers Released . | . . . . . Fabnet Peak Effective % . | . . . . . Robots Rewired . | . . . . . Allies Hacked . | . . . . . Hacks Repelled . | . . . . . Allies | -11 -10 -9 -9 -8 -------- Run | Yrd Mat Mat Sto Mat Total Allies . | . . . . . Largest Group . | . . . . . Highest-Rated Group . | . . . . . Highest-Rated Ally . | . . . . . Total Orders . | . . . . . Ally Attacks . | . . . . . Total Damage . | . . . . . Kills . | . . . . . Allies Corrupted . | . . . . . Allies Melted . | . . . . . Intel | -11 -10 -9 -9 -8 ------- Run | Yrd Mat Mat Sto Mat Active Infowar (turns) 991 | 78 68 234 568 43 Optics 816 | . . 205 568 43 Sensors 106 | . . . 106 . Seismic 811 | 78 68 234 431 . Robot Analysis Total . | . . . . . Derelict Logs Recovered . | . . . . . Drone Launches . | . . . . . Drone Recoveries . | . . . . . Exploration | -11 -10 -9 -9 -8 ------------- Run | Yrd Mat Mat Sto Mat Turns Passed 1123 | 158 68 234 568 95 Spaces Moved 956 | 68 90 260 398 140 Core 184 | 15 . . 29 140 Treads . | . . . . . Legs 435 | 53 13 . 369 . Wheels . | . . . . . Hover 337 | . 77 260 . . Flight . | . . . . . Fastest Speed 50 | 50 56 52 50 50 Average Speed 87 | 114 65 68 114 50 Slowest Speed 180 | 150 120 180 120 50 Overloaded Moves . | . . . . . Propulsion Burnouts . | . . . . . Robots Hopped . | . . . . . Potential Cave-ins . | . . . . . Cave-ins Triggered . | . . . . . Exploration Rate (%) 24 | 6 18 22 50 27 Regions Visited 4 Branch Regions 1 Pre-discovered Areas . | . . . . . Known Exits Taken . | . . . . . Unknown Exits Taken 4 | 1 1 1 1 . Scrap Searched . | . . . . . Spaces Dug . | . . . . . Terrain Destroyed 1 | . . . 1 . Melee . | . . . . . Projectile 1 | . . . 1 . AOE . | . . . . . Terrain Rammed . | . . . . . Walls Destroyed . | . . . . . Machines Disabled . | . . . . . Actions | -11 -10 -9 -9 -8 --------- Run | Yrd Mat Mat Sto Mat Total 1128 | 106 100 306 454 162 Wait 48 | 1 . 26 12 9 Move 952 | 67 89 259 397 140 Hop . | . . . . . Pick Up 19 | 8 5 3 2 1 Fast Attach 3 | . . 1 2 . Attach 15 | 6 3 1 3 2 Detach 2 | . 2 . . . Swap 7 | 1 . 3 3 . Drop 9 | . 1 3 5 . Fire 60 | 23 . 7 30 . Melee 5 | . . 3 . 2 Ram 8 | . . . . 8 Kick . | . . . . . Crush . | . . . . . Escape Stasis . | . . . . . Rewire . | . . . . . Trap . | . . . . . Miscellaneous . | . . . . . Route ------- -11/Scrapyard -10/Materials -9/Materials (discovered 2 exits: [Min] / *Sto) -9/Storage -8/Materials History --------- Turn | Location | Event 9 | -11/Scrapyard | Discovered new exit (range 16) 159 | -11/Scrapyard | Entered Materials 224 | -10/Materials | Discovered new exit (range 4) 227 | -10/Materials | Entered another Materials area 227 | -9/Materials | Evolved 2 slots: Propulsion x1, Utility x1 317 | -9/Materials | Build established: Mutant 391 | -9/Materials | Discovered new exit (range 10) 414 | -9/Materials | Discovered new exit (range 10) 461 | -9/Materials | Entered Storage 1024 | -9/Storage | Core integrity fell below 50% 1025 | -9/Storage | Discovered new exit (range 9) 1029 | -9/Storage | Entered Materials 1029 | -8/Materials | Evolved 2 slots: Power x1, Utility x1 1042 | -8/Materials | Lost 8 parts (1p3n1u3w) 1112 | -8/Materials | Core integrity fell below 50% 1114 | -8/Materials | Core integrity fell below 20% 1124 | -8/Materials | Destroyed by C-17 Slicer with Blade Saw Last Messages --------------- 01077_ W-25 Informer sends out distress signal. 01078_ K-01 Serf cleans the Scanalyzer. 01079_ Slammed into S-10 Pest. 01081_ Slammed into A-02 Transporter. 01086_ U-05 Engineer works on Electrolysis Chamber. 01100_ ALERT: Suspicious intruders detected, dispatching Cutter reinforcements to area. 01110_ K-01 Serf collects debris. 01111_ U-05 Engineer builds a Wall. 01112_ Lrg. Battery destroyed. 01112_ Broken Adv. Visual Processing Unit severed. 01113_ Penetrated by Slug. 01114_ K-01 Serf collects debris. 01117_ Acquired Powered Hammer. 01120_ Destroyed Blade Saw. 01120_ C-17 Slicer system corrupted by crushing effect. 01120_ K-01 Serf collects debris. Map ----- +----------------------------------------------------+ | ???????????????????????????# # """" # #??# | | ???????????????????????????# # """" ?# #? | | ???????????????????????????# #?"""" ?# #?= | | ???????????????????????????? #? ??# # | | ?????????????????????????????? #######??# # | | ????????????????????????????####+########## + | | ????????????????????????????# # "" | | ????????????????????????????# # "" | | ????????????????????????????# #?"" | | ????????????????????????????# ###############?## | | ????????????????????????????# ##???????????????? | | ????????????????????????????# ##???????????????? | | ????????????????????????????# ##???????????????? | | ????????????????????????????# #????????????????? | | ????????????????????????????# #????????????????? | | ???????????????#??????????### ###??????????????? | | ??????????????## ????????#% #??????????????? | | ??????????????# ####### #?? ?????????? | | ??????????????# % # """??????????? | | ??????????? + """??????????? | | ??????????????# H #??????????????? | | ??????????????# ######" #??????????????? | | ??????????????####???????## #??????????????? | | ??????????????????????????## ##??????????????? | | ???????????????????????#####ss #???????????????? | | ???????????????????????#/@c #???????????????? | | ???????????????????????#/ccssss #???????????????? | | ???????????????????????#!! k #???????????????? | | ???????????????????????#!! #???????????????? | | ???????????????????????#!! #???????????????? | | ???????????????????????#!! #???????????????? | | ???????????????????????##### #???????????????? | | ???????????????????????????#ta #???????????????? | | ???????????????????????????? #???????????????? | | ???????????????????????????? #???????????????? | | ???????????????????????????? #???????????????? | | ???????????????????????????? ???????????????? | | ???????????????????????????? ??????????????? | | ???????????????????????????? ??????????????? | | ???????????????????????????? ?????????????????? | | ????????????????????????????? ???????????????????? | | ?????????????????????????????????????????????????? | | ?????????????????????????????????????????????????? | | ?????????????????????????????????????????????????? | | ?????????????????????????????????????????????????? | | ?????????????????????????????????????????????????? | | ?????????????????????????????????????????????????? | | ?????????????????????????????????????????????????? | | ?????????????????????????????????????????????????? | | ?????????????????????????????????????????????????? | +----------------------------------------------------+ Best States ------------- Heat Dissipation 31 Energy Generation 12 Energy Capacity 465 Matter Stores 300 Matter Capacity 300 Sight Range 20 Robot Scan Range 14 Terrain Scan Density 10 Evasion (%) 55 Item Schematics ----------------- None Robot Schematics ------------------ None Fabricated ------------ Nothing Repaired ---------- Nothing Studied --------- None Alien Tech Used ----------------- None Achievements -------------- None Challenges ------------ None Game ------ Seed HardlightEncryptedLauncher Manual? 0 Play Time 00:32:15 Cumulative 106.0 hours Start 2025.11.30 @ 17:56:46 End 2025.11.30 @ 18:29:55 Sessions 1 Manual Loads 0 Difficulty Rogue Special Mode None Game No. 125 Rogue 125 Adventurer 0 Explorer 0 Win Type - Total 0 Types 0/0/0/0/0/0/0/0/0/0 Lore% 18 Gallery% 38 Achievement% 19 Wizard Run 0 Options --------- Layout 1 ASCII 0 Keyboard 0 Movement Mouse Keybinds 0 Fullscreen 1 Font 32/SmallcapsGlow Map View 50x35 Zoom Use 0% Tactical HUD 1 Map Filters NONE Filters NONE Steam 1 RUN: 62cf49a4-0c14-4549-b393-b46432598a61